bitfinex-derivatives/quotes_BTCF0:USTF0_20240815
["timestamp","ask_amount","ask_price","bid_price","bid_amount"]
[1723756337888,0.404698,56930.0,56920.0,0.16]
[1723756338291,0.3608,56930.0,56923.0,0.043903]
[1723756338493,0.3608,56930.0,56919.0,0.36106348]
[1723756338702,0.043901,56926.0,56925.0,0.001]
[1723756339499,0.043901,56926.0,56919.0,0.00026348]
[1723756339695,0.3608,56923.0,56919.0,0.17026348]
[1723756339887,0.404703,56923.0,56919.0,0.17026348]
[1723756340893,0.404703,56923.0,56919.0,0.00026348]
[1723756341502,0.404703,56923.0,56919.0,0.00226348]
[1723756341887,0.3608,56923.0,56919.0,0.00226348]
[1723756343094,0.3608,56923.0,56919.0,0.17226348]
[1723756343702,0.3608,56923.0,56920.0,0.043905]
[1723756343893,0.3608,56923.0,56920.0,0.203905]
[1723756344899,0.3608,56930.0,56921.0,0.3608]
[1723756345302,0.0439,56927.0,56921.0,0.404704]
[1723756345603,0.3608,56930.0,56921.0,0.404704]
[1723756345803,0.3608,56930.0,56922.0,0.043904]
[1723756346400,0.3608,56930.0,56924.0,0.043902]
[1723756346707,0.3608,56930.0,56925.0,3.77]
[1723756347007,0.043896,56932.0,56925.0,3.77]
[1723756347200,0.3618,56930.0,56926.0,0.2222]
[1723756347903,0.3658,56930.0,56926.0,0.2222]
[1723756348102,0.3658,56930.0,56925.0,0.00088]
[1723756348103,0.043901,56926.0,56925.0,0.00088]
[1723756348406,0.043901,56926.0,56921.0,0.3608]
[1723756348607,0.043901,56926.0,56921.0,0.5308]
[1723756349003,0.3608,56923.0,56919.0,0.00026348]
[1723756350009,0.3608,56923.0,56919.0,0.00752299]
[1723756350508,0.043905,56921.0,56919.0,0.00752299]
[1723756352000,0.043905,56921.0,56919.0,0.00952299]
[1723756352802,0.3608,56923.0,56922.0,0.043904]
[1723756353104,0.3608,56923.0,56922.0,0.193904]
[1723756353310,0.3608,56923.0,56922.0,0.213904]
[1723756354213,0.3608,56923.0,56922.0,0.043904]
[1723756354407,0.3628,56923.0,56922.0,0.043904]
[1723756354596,0.41522384,56923.0,56922.0,0.25645116]
[1723756354801,0.3628,56923.0,56922.0,0.09645116]
[1723756355000,0.3628,56923.0,56922.0,0.25645116]
[1723756355403,0.3628,56923.0,56922.0,0.203904]
[1723756356107,0.05454074,56923.0,56922.0,0.564704]
[1723756356302,0.002,56923.0,56922.0,0.564704]
[1723756356807,0.00179032,56923.0,56922.0,0.564704]
[1723756357108,0.029745,56924.0,56923.0,0.043903]
[1723756357306,0.029745,56924.0,56923.0,0.193903]
[1723756357704,0.00266912,56924.0,56923.0,0.193903]
[1723756358005,0.043888,56943.0,56923.0,0.193903]
[1723756358006,0.0874299,56937.0,56923.0,0.96235281]
[1723756358234,0.0874299,56939.0,56935.0,0.05260086]
[1723756358603,0.0874299,56940.0,56935.0,0.043894]
[1723756359213,0.043888,56943.0,56935.0,0.043894]
[1723756359214,0.3638,56936.0,56935.0,0.043894]
[1723756359699,0.3748,56936.0,56935.0,0.044894]
[1723756361807,0.3748,56936.0,56935.0,0.045894]
[1723756362003,0.44485217,56936.0,56935.0,0.045894]
[1723756363114,0.3748,56936.0,56935.0,0.045894]
[1723756363616,0.3748,56936.0,56935.0,0.05348477]
[1723756364010,0.3748,56936.0,56935.0,0.10608563]
[1723756364516,0.3748,56936.0,56935.0,0.05248477]
[1723756364517,0.3608,56936.0,56935.0,0.05248477]
[1723756364710,0.3748,56936.0,56935.0,0.05348477]
[1723756365110,0.3608,56936.0,56935.0,0.05248477]
[1723756365415,0.3708,56936.0,56935.0,0.05248477]
[1723756365617,0.3708,56936.0,56935.0,0.05348477]
[1723756367706,0.01,56936.0,56935.0,0.05348477]
[1723756368314,0.01,56936.0,56935.0,0.00959077]
[1723756370022,0.01,56936.0,56935.0,0.05348477]
[1723756372506,0.01,56936.0,56935.0,0.10608563]
[1723756373317,0.01,56936.0,56935.0,0.27608563]
[1723756373522,0.07005217,56945.0,56944.0,0.043887]
[1723756373716,0.07005217,56953.0,56944.0,0.5208]
[1723756374016,0.07005217,56952.0,56944.0,0.3608]
[1723756374222,0.3608,56958.0,56944.0,0.3608]
[1723756374223,0.07005217,56953.0,56944.0,0.3608]
[1723756374425,0.07005217,56952.0,56944.0,0.3608]
[1723756374615,0.07005217,56953.0,56944.0,0.3618]
[1723756374919,0.07805217,56953.0,56944.0,0.3628]
[1723756375216,0.043885,56947.0,56944.0,0.41528735]
[1723756375420,0.07005217,56950.0,56944.0,0.36916744]
[1723756375609,0.27295217,56949.0,56944.0,0.37016744]
[1723756375811,0.043886,56946.0,56944.0,0.37016744]
[1723756376024,0.07005217,56948.0,56944.0,0.37016744]
[1723756376323,0.07141217,56949.0,56944.0,0.52016744]
[1723756376516,0.07005217,56952.0,56944.0,0.52016744]
[1723756376714,0.07805217,56953.0,56944.0,0.52016744]
[1723756377207,0.008,56953.0,56947.0,0.043885]
[1723756377412,0.07005217,56954.0,56947.0,0.043885]
[1723756378211,0.07005217,56954.0,56948.0,0.404684]
[1723756378619,0.11393117,56955.0,56948.0,0.554684]
[1723756379615,0.11393117,56955.0,56948.0,0.555684]
[1723756379815,0.11393117,56955.0,56948.0,0.405684]
[1723756380521,0.07405217,56954.0,56948.0,0.3628]
[1723756380712,0.043882,56951.0,56948.0,0.3628]
[1723756381117,0.043882,56951.0,56948.0,0.3618]
[1723756381318,0.043882,56951.0,56948.0,0.3628]
[1723756381524,0.043883,56949.0,56948.0,0.3628]
[1723756381729,0.043883,56949.0,56948.0,0.001]
[1723756382019,0.11393517,56949.0,56948.0,0.001]
[1723756382218,0.11393517,56949.0,56948.0,0.002]
[1723756382928,0.11393517,56949.0,56948.0,0.001]
[1723756383226,0.11393517,56949.0,56948.0,0.002]
[1723756383426,0.043883,56949.0,56948.0,0.002]
[1723756383612,0.11393517,56949.0,56948.0,0.002]
[1723756383815,0.043883,56949.0,56948.0,0.3628]
[1723756384017,0.07005217,56951.0,56948.0,0.3618]
[1723756384218,0.005,56949.0,56948.0,0.3628]
[1723756384417,0.005,56949.0,56948.0,0.002]
[1723756384725,0.07505217,56949.0,56948.0,0.002]
[1723756384924,0.005,56949.0,56948.0,0.002]
[1723756385121,0.06998414,56951.0,56948.0,0.3618]
[1723756385423,0.005,56951.0,56948.0,0.3628]
[1723756385821,0.06998414,56952.0,56949.0,0.043882]
[1723756386126,0.06998414,56952.0,56950.0,0.043882]
[1723756386323,0.06998414,56954.0,56950.0,0.043882]
[1723756386526,0.06998414,56953.0,56950.0,0.043882]
[1723756387126,0.405918,56956.0,56950.0,0.043882]
[1723756387127,0.06998414,56954.0,56950.0,0.043882]
[1723756387519,0.06998414,56953.0,56950.0,0.043882]
[1723756387720,0.005,56951.0,56948.0,0.3628]
[1723756388022,0.005,56951.0,56948.0,0.41420692]
[1723756388222,0.06998414,56953.0,56950.0,0.001]
[1723756388944,0.005,56951.0,56949.0,0.043883]
[1723756389328,0.005,56951.0,56950.0,0.001]
[1723756389529,0.005,56951.0,56950.0,0.044882]
[1723756391230,0.005,56953.0,56950.0,0.405682]
[1723756391627,0.005,56953.0,56950.0,0.404682]
[1723756391826,0.005,56951.0,56950.0,0.405682]
[1723756392528,0.005,56953.0,56950.0,0.3628]
[1723756392722,0.07498414,56953.0,56950.0,0.3628]
[1723756392923,0.06998414,56952.0,56950.0,0.3628]
[1723756393125,0.07498414,56951.0,56950.0,0.3628]
[1723756393328,0.297409,56951.0,56950.0,0.3628]
[1723756393529,0.271282,56951.0,56950.0,0.3628]
[1723756394132,0.271282,56951.0,56945.0,0.3608]
[1723756394133,1.15416,56951.0,56945.0,0.05248735]
[1723756394332,1.15416,56951.0,56937.0,0.3608]
[1723756394333,0.3608,56947.0,56937.0,0.3608]
[1723756394528,0.043891,56939.0,56937.0,0.3608]
[1723756394730,0.07001744,56938.0,56937.0,0.3608]
[1723756395328,0.07001744,56938.0,56924.0,0.3164681]
[1723756395329,0.043895,56933.0,56932.0,0.00026348]
[1723756396930,0.570815,56933.0,56932.0,0.00026348]
[1723756397132,0.970815,56933.0,56932.0,0.00026348]
[1723756397334,0.004,56938.0,56937.0,0.043892]
[1723756397739,0.08769338,56943.0,56937.0,0.043892]
[1723756397940,0.001,56938.0,56937.0,0.044892]
[1723756398533,0.00026348,56943.0,56942.0,0.043888]
[1723756398734,0.00026348,56943.0,56942.0,0.404688]
[1723756399041,0.00026348,56943.0,56942.0,0.45718799]
[1723756399531,0.00026348,56943.0,56942.0,0.404688]
[1723756399733,0.00126348,56943.0,56942.0,0.404688]
[1723756399934,0.00126348,56943.0,56942.0,0.45718928]
[1723756400238,0.00126348,56943.0,56942.0,0.45719295]
[1723756400540,0.00126348,56943.0,56942.0,0.41202388]
[1723756400832,0.00126348,56943.0,56942.0,0.46453289]
[1723756401425,0.00126348,56943.0,56942.0,0.41202388]
[1723756401624,0.00126348,56943.0,56942.0,0.46453289]
[1723756402434,0.00126348,56943.0,56942.0,0.41202388]
[1723756403634,0.00126348,56943.0,56942.0,0.36813588]
[1723756403937,0.00126348,56943.0,56942.0,0.42065985]
[1723756404143,0.00126348,56943.0,56942.0,0.36813588]
[1723756404436,0.52810348,56943.0,56942.0,0.36813588]
[1723756404630,0.00126348,56943.0,56942.0,0.36813588]
[1723756404942,0.07125611,56943.0,56942.0,0.3608]
[1723756406754,1.04198411,56943.0,56942.0,0.3608]
[1723756406943,0.11514411,56943.0,56942.0,0.3608]
[1723756407139,0.64198411,56943.0,56942.0,0.3608]
[1723756407742,0.043889,56942.0,56938.0,0.05252346]
[1723756407939,0.1139295,56939.0,56936.0,0.05252346]
[1723756408143,0.043892,56938.0,56932.0,0.41810294]
[1723756408441,0.07002383,56935.0,56932.0,0.36465948]
[1723756408842,0.07002383,56934.0,56933.0,0.05252346]
[1723756409236,0.07002383,56935.0,56933.0,0.05252346]
[1723756409638,0.07002383,56940.0,56932.0,0.07788729]
[1723756409838,0.07002383,56942.0,56939.0,0.3608]
[1723756410042,0.07002383,56942.0,56940.0,0.05250664]
[1723756410344,0.043894,56935.0,56934.0,0.0525085]
[1723756410541,0.043895,56933.0,56932.0,0.01126348]
[1723756410736,0.11385528,56933.0,56932.0,0.01126348]
[1723756410944,0.64077528,56933.0,56932.0,0.00026348]
[1723756411734,0.64857998,56933.0,56932.0,0.00026348]
[1723756412141,0.5786197,56933.0,56932.0,0.00026348]
[1723756412542,1.04857998,56933.0,56932.0,0.00026348]
[1723756412740,1.05857998,56933.0,56932.0,0.00026348]
[1723756412940,1.04857998,56933.0,56932.0,0.00026348]
[1723756414039,0.64857998,56933.0,56932.0,0.00026348]
[1723756414237,1.04857998,56933.0,56932.0,0.00026348]
[1723756414444,0.64857998,56933.0,56932.0,0.00026348]
[1723756414847,1.04857998,56933.0,56932.0,0.00026348]
[1723756415240,0.9786197,56933.0,56932.0,0.00026348]
[1723756415751,0.5786197,56933.0,56932.0,0.00026348]
[1723756415934,0.0516997,56933.0,56932.0,0.00026348]
[1723756416237,0.5786197,56933.0,56932.0,0.00026348]
[1723756416438,0.0516997,56933.0,56932.0,0.00026348]
[1723756418244,0.3608,56935.0,56932.0,0.00026348]
[1723756419046,0.00775877,56936.0,56933.0,0.3608]
[1723756419240,0.11385228,56938.0,56934.0,0.2297]
[1723756419450,0.043892,56938.0,56934.0,0.2297]
[1723756420240,0.11385228,56938.0,56934.0,0.2297]
[1723756420543,0.043892,56938.0,56934.0,0.2297]
[1723756420748,0.05178116,56938.0,56934.0,0.2297]
[1723756421142,0.12174144,56938.0,56934.0,0.2297]
[1723756421348,0.12374144,56938.0,56934.0,0.2297]
[1723756421763,0.07984944,56938.0,56934.0,0.2297]
[1723756422054,0.043894,56935.0,56934.0,0.2297]
[1723756422250,0.043895,56934.0,56933.0,0.3608]
[1723756422451,0.043895,56933.0,56932.0,0.00026348]
[1723756422650,0.11378389,56933.0,56932.0,0.36106348]
[1723756422848,0.043895,56933.0,56932.0,0.36106348]
[1723756424255,0.001,56934.0,56932.0,0.36106348]
[1723756424453,0.043893,56936.0,56932.0,0.36106348]
[1723756425151,0.06988889,56937.0,56932.0,0.36106348]
[1723756425457,0.3608,56954.0,56932.0,0.36106348]
[1723756425458,0.06988889,56945.0,56942.0,0.043889]
[1723756425662,0.06988889,56949.0,56942.0,0.043889]
[1723756425957,0.06988889,56951.0,56942.0,0.0963975]
[1723756426154,0.00772785,56950.0,56942.0,0.478789]
[1723756426650,0.00772785,56950.0,56942.0,0.479789]
[1723756427851,0.043882,56951.0,56942.0,0.479789]
[1723756428258,0.00526348,56943.0,56942.0,0.479789]
[1723756428457,0.00526348,56943.0,56942.0,1.156629]
[1723756428761,0.00526348,56943.0,56942.0,0.479789]
[1723756429062,0.00526348,56943.0,56942.0,0.48761061]
[1723756429763,0.06988889,56950.0,56942.0,0.48761061]
[1723756429965,0.04604,57113.0,56942.0,0.48761061]
[1723756430163,0.01834264,57040.0,56980.0,0.0549]
[1723756430460,0.04604,57113.0,57027.0,0.3608]
[1723756430461,0.12229407,57033.0,57027.0,0.3608]
[1723756430683,0.3608,57048.0,57032.0,0.3608]
[1723756430853,0.3598,57048.0,57028.0,0.00037251]
[1723756431060,0.3608,57041.0,57028.0,0.00037251]
[1723756431258,0.3608,57041.0,57015.0,0.06941842]
[1723756431259,0.3608,57036.0,57018.0,0.3608]
[1723756431449,0.3608,57036.0,57034.0,0.00026294]
[1723756431450,0.043817,57035.0,57034.0,0.00026294]
[1723756431654,0.3608,57036.0,57034.0,0.00026294]
[1723756431845,0.526,57035.0,57011.0,0.3608]
[1723756432054,0.3608,57023.0,57011.0,0.3608]
[1723756432245,0.3608,57028.0,57011.0,0.3608]
[1723756432453,0.8481,57005.0,56979.0,0.08637766]
[1723756432657,0.3608,56986.0,56971.0,0.05186942]
[1723756432856,0.3608,56986.0,56969.0,0.05186942]
[1723756432857,0.3608,56978.0,56969.0,0.05186942]
[1723756433058,0.3608,56986.0,56972.0,3.82186942]
[1723756433252,0.000262,56984.0,56973.0,0.23656319]
[1723756433453,0.00014183,56983.0,56973.0,0.23656319]
[1723756433748,0.3608,56981.0,56973.0,0.23656319]
[1723756434652,0.3608,56981.0,56972.0,3.77088]
[1723756434653,0.3608,56975.0,56958.0,0.05186942]
[1723756434885,0.52673919,56980.0,56953.0,0.00017668]
[1723756434886,0.3608,56964.0,56953.0,0.00017668]
[1723756435052,0.3608,56957.0,56953.0,0.00017668]
[1723756435258,0.3608,56957.0,56954.0,3.77]
[1723756435860,0.3608,56955.0,56954.0,3.77]
[1723756437565,0.3618,56955.0,56954.0,3.77]
[1723756437953,0.001,56955.0,56954.0,3.775]
[1723756440453,0.001,56955.0,56954.0,4.1358]
[1723756440660,0.001,56955.0,56954.0,3.775]
[1723756441569,0.3618,56955.0,56954.0,3.775]
[1723756441777,0.001,56955.0,56954.0,3.775]
[1723756443360,0.3608,56989.0,56956.0,0.043877]
[1723756443565,0.3608,56989.0,56973.0,0.3608]
[1723756443968,0.043857,56984.0,56974.0,3.77]
[1723756444391,0.04391749,56983.0,56974.0,3.77]
[1723756444555,0.04391749,56983.0,56974.0,3.813864]
[1723756445365,0.04391749,56983.0,56974.0,3.822864]
[1723756445558,0.04391749,56983.0,56978.0,0.3608]
[1723756446468,6.049e-05,56983.0,56978.0,0.3608]
[1723756446669,6.049e-05,56983.0,56978.0,0.3628]
[1723756447170,6.049e-05,56983.0,56978.0,0.3608]
[1723756447372,0.00106049,56983.0,56978.0,0.3678]
[1723756448070,0.00206049,56983.0,56978.0,0.3678]
[1723756448662,0.043858,56982.0,56978.0,0.3678]
[1723756448875,0.00106049,56983.0,56978.0,0.3638]
[1723756449567,0.00206049,56983.0,56979.0,3.77]
[1723756449963,6.049e-05,56983.0,56979.0,3.77]
[1723756450156,0.00106049,56983.0,56980.0,0.043859]
[1723756450560,6.049e-05,56983.0,56980.0,0.043859]
[1723756450780,0.00206049,56983.0,56980.0,0.043859]
[1723756451271,0.00206049,56983.0,56981.0,0.043858]
[1723756451470,6.049e-05,56983.0,56981.0,0.043858]
[1723756453367,0.00106049,56983.0,56981.0,0.053858]
[1723756453768,0.00206049,56983.0,56981.0,0.053858]
[1723756454573,0.00206049,56983.0,56981.0,0.060858]
[1723756455071,0.00095736,56983.0,56982.0,3.77]
[1723756455270,0.00095736,56983.0,56982.0,3.82185924]
[1723756455573,0.001,56983.0,56982.0,3.77]
[1723756456068,0.000262,56985.0,56982.0,3.77]
[1723756456275,0.001,56983.0,56982.0,3.78]
[1723756457363,0.001,56983.0,56982.0,4.45248]
[1723756457871,0.001,56983.0,56982.0,3.926]
[1723756458071,0.001,56983.0,56982.0,3.78]
[1723756458272,0.001,56983.0,56982.0,3.776]
[1723756458477,0.000262,56985.0,56982.0,3.776]
[1723756458677,0.001262,56985.0,56982.0,3.786]
[1723756458975,0.000262,56985.0,56982.0,3.84515058]
[1723756459169,0.001,56983.0,56982.0,3.85515058]
[1723756459370,0.001,56983.0,56982.0,3.786]
[1723756459564,0.000262,56985.0,56982.0,3.776]
[1723756459770,0.000262,56985.0,56984.0,0.06937561]
[1723756459771,0.001262,56985.0,56984.0,0.06937561]
[1723756460271,0.001262,56985.0,56982.0,0.018]
[1723756460472,0.001262,56985.0,56984.0,3.77]
[1723756460664,0.001262,56985.0,56984.0,3.83942416]
[1723756461073,0.001262,56985.0,56984.0,3.94]
[1723756461269,0.000262,56985.0,56984.0,3.77]
[1723756461472,0.000262,56985.0,56984.0,4.98675776]
[1723756461776,0.404632,57016.0,56984.0,5.09370678]
[1723756461777,0.05147707,57011.0,56984.0,5.09370678]
[1723756461975,0.043838,57007.0,57006.0,0.3608]
[1723756462175,0.043838,57007.0,57006.0,0.41290632]
[1723756462378,0.043838,57007.0,56996.0,0.24572]
[1723756462379,0.04384,57005.0,57003.0,0.05211099]
[1723756462572,0.218,57004.0,56998.0,0.3608]
[1723756462873,0.218,57004.0,56998.0,0.36106319]
[1723756463069,0.043845,56999.0,56998.0,0.36106319]
[1723756463975,0.014,57007.0,56998.0,0.36106319]
[1723756464190,0.014,57007.0,57004.0,0.3608]
[1723756464191,0.057839,57007.0,57004.0,0.3608]
[1723756464371,0.043839,57006.0,57005.0,3.77]
[1723756465379,1.14628,57006.0,56998.0,0.41417192]
[1723756465577,0.043845,56999.0,56998.0,0.36206319]
[1723756465772,0.043845,56999.0,56998.0,0.41417192]
[1723756466178,0.970165,56999.0,56998.0,0.41417192]
[1723756466376,0.043845,56999.0,56998.0,0.41417192]
[1723756466581,0.043845,56999.0,56998.0,0.41317192]
[1723756467178,0.043845,56999.0,56998.0,0.36106319]
[1723756467585,0.050845,56999.0,56998.0,0.36206319]
[1723756468384,0.054845,56999.0,56998.0,0.36206319]
[1723756469083,0.054845,56999.0,56998.0,0.43153829]
[1723756469384,0.011,56999.0,56998.0,0.36206319]
[1723756469972,0.00773627,57007.0,57003.0,0.043841]
[1723756470184,0.36228,57010.0,57003.0,0.11340667]
[1723756470384,0.404636,57010.0,57009.0,0.05217043]
[1723756470778,0.043839,57007.0,57004.0,0.06956567]
[1723756471283,0.050839,57007.0,57004.0,0.06956567]
[1723756471474,0.050839,57007.0,57003.0,0.002]
[1723756471475,0.050839,57007.0,57006.0,0.06956567]
[1723756471680,0.050839,57007.0,57006.0,0.06957553]
[1723756471877,0.061839,57007.0,57006.0,0.06957553]
[1723756472077,0.061839,57007.0,57004.0,0.001]
[1723756473389,0.04384,57005.0,57004.0,0.002]
[1723756473586,0.24384,57005.0,57004.0,0.002]
[1723756473885,1.21396,57005.0,57004.0,0.002]
[1723756474188,0.28768,57005.0,57004.0,0.002]
[1723756474386,0.24384,57005.0,57004.0,0.001]
[1723756474584,0.57012,57005.0,57004.0,0.002]
[1723756475686,0.04384,57005.0,57004.0,0.002]
[1723756475889,0.57012,57005.0,57004.0,0.002]
[1723756476082,0.57012,57005.0,57004.0,0.07164531]
[1723756476500,0.04384,57005.0,57004.0,0.07064531]
[1723756476990,0.04484,57005.0,57004.0,0.07064531]
[1723756477292,0.05484,57005.0,57004.0,0.07164531]
[1723756477588,0.05484,57005.0,57004.0,0.002]
[1723756479091,0.01099214,57005.0,57004.0,0.002]
[1723756479285,0.05483214,57005.0,57004.0,0.002]
[1723756479691,0.05483214,57005.0,57004.0,0.07172234]
[1723756480094,0.01099214,57005.0,57004.0,0.002]
[1723756480699,0.01099214,57005.0,57004.0,0.07172234]
[1723756480901,0.05483614,57005.0,57004.0,0.002]
[1723756482096,0.94191614,57005.0,57004.0,0.002]
[1723756482285,0.94191614,57005.0,57004.0,0.05434126]
[1723756482491,0.41563614,57005.0,57004.0,0.002]
[1723756483188,0.41563614,57005.0,56999.0,0.06972234]
[1723756483189,1.29807214,57005.0,56999.0,0.06972234]
[1723756483393,0.043849,56999.0,56998.0,0.00026319]
[1723756484285,0.233849,56999.0,56998.0,0.00026319]
[1723756484687,1.160169,56999.0,56998.0,0.00026319]
[1723756484991,1.163169,56999.0,56998.0,0.00026319]
[1723756485491,1.164169,56999.0,56998.0,0.00026319]
[1723756486196,1.166169,56999.0,56998.0,0.00126319]
[1723756487084,1.166169,56999.0,56997.0,0.05237138]
[1723756487085,1.210018,56999.0,56997.0,0.05237138]
[1723756487293,0.043854,56992.0,56991.0,0.05236713]
[1723756487498,0.087714,56988.0,56987.0,0.05236713]
[1723756487697,0.043859,56986.0,56985.0,0.05236713]
[1723756487902,0.3624,56988.0,56983.0,0.05236713]
[1723756488202,0.05247019,56984.0,56982.0,0.05236713]
[1723756488493,0.05247019,56984.0,56982.0,0.05236197]
[1723756488494,0.3608,56983.0,56982.0,0.05236197]
[1723756488694,0.043863,56981.0,56980.0,0.05262831]
[1723756489104,0.043863,56981.0,56980.0,0.00026319]
[1723756491999,0.044863,56981.0,56980.0,0.01226319]
[1723756492791,1.235206,56981.0,56980.0,0.01226319]
[1723756492997,1.191343,56981.0,56970.0,0.05236512]
[1723756493298,0.3608,56971.0,56967.0,0.28476512]
[1723756493598,0.043873,56968.0,56967.0,0.28476512]
[1723756493794,0.043873,56968.0,56967.0,0.2324]
[1723756493994,0.043873,56968.0,56967.0,0.28466085]
[1723756494191,0.043873,56967.0,56966.0,0.05226085]
[1723756495109,0.043874,56966.0,56965.0,0.3608]
[1723756495699,0.043877,56963.0,56962.0,0.00026319]
[1723756497303,0.004,56967.0,56962.0,0.36106319]
[1723756497605,0.043871,56971.0,56964.0,0.043876]
[1723756497809,0.003,56966.0,56965.0,0.043875]
[1723756498406,0.043871,56971.0,56966.0,0.043874]
[1723756499501,0.043871,56971.0,56962.0,0.36106319]
[1723756499502,0.001,56971.0,56970.0,0.043871]
[1723756500606,0.001,56971.0,56970.0,0.576774]
[1723756500905,0.001,56971.0,56970.0,0.581774]
[1723756501212,0.00026319,56973.0,56972.0,0.04387]
[1723756501504,0.04387,56971.0,56970.0,0.00188]
[1723756501805,0.04487,56971.0,56970.0,0.006]
[1723756502408,0.79047,56971.0,56970.0,0.005]
[1723756503508,0.043875,56966.0,56962.0,0.36106319]
[1723756503704,0.40593219,56973.0,56962.0,0.36106319]
[1723756503923,0.043877,56963.0,56962.0,0.00026319]
[1723756506014,0.3608,56966.0,56962.0,0.00026319]
[1723756506205,0.404674,56966.0,56962.0,0.00026319]
[1723756506406,0.002,56963.0,56962.0,0.00026319]
[1723756507205,0.043876,56964.0,56962.0,0.00026319]
[1723756507511,0.36106319,56973.0,56963.0,0.3608]
[1723756507712,0.36106319,56973.0,56970.0,0.3608]
[1723756507713,0.00026319,56973.0,56970.0,0.3608]
[1723756507910,0.00026319,56973.0,56971.0,0.4577]
[1723756508600,0.043861,56984.0,56976.0,0.043866]
[1723756508805,0.233861,56984.0,56976.0,0.043866]
[1723756509015,0.043861,56984.0,56977.0,0.043866]
[1723756509212,0.043861,56984.0,56971.0,0.51617716]
[1723756509405,0.3608,56980.0,56977.0,0.043865]
[1723756510003,0.00026319,56984.0,56977.0,0.3608]
[1723756510208,0.00026319,56984.0,56979.0,0.05226085]
[1723756510407,0.00026319,56984.0,56980.0,0.05226085]
[1723756510616,0.00026319,56984.0,56977.0,0.41306085]
[1723756510817,0.00026319,56984.0,56978.0,0.05226085]
[1723756511019,0.001,56980.0,56978.0,0.05226085]
[1723756511219,0.001,56980.0,56979.0,0.0522026]
[1723756511725,0.043861,56983.0,56980.0,0.001]
[1723756512104,0.00126319,56984.0,56980.0,0.05220175]
[1723756512105,0.00026319,56984.0,56980.0,0.05220175]
[1723756512312,0.00026319,56984.0,56981.0,0.05220175]
[1723756512513,0.00026319,56984.0,56981.0,0.09606475]
[1723756513211,0.00026319,56984.0,56982.0,0.05220175]
[1723756513817,0.00026319,56984.0,56981.0,0.09606475]
[1723756514417,0.00126319,56984.0,56982.0,0.001]
[1723756515021,0.043861,56983.0,56982.0,0.001]
[1723756515215,0.043861,56983.0,56982.0,0.05320175]
[1723756515518,0.043861,56983.0,56982.0,0.05220175]
[1723756515853,0.00026319,56984.0,56981.0,0.003]
[1723756516314,0.043861,56983.0,56982.0,0.05226294]
[1723756516510,0.043862,56982.0,56981.0,0.003]
[1723756516830,0.043868,56974.0,56973.0,0.05255233]
[1723756517117,0.043868,56974.0,56973.0,0.00026319]
[1723756518015,0.043868,56974.0,56973.0,0.00126319]
[1723756518016,0.044868,56974.0,56973.0,0.00126319]
[1723756518219,1.376096,56974.0,56973.0,0.001]
[1723756518514,1.376096,56974.0,56961.0,0.2158]
[1723756518515,0.043869,56973.0,56967.0,0.05231711]
[1723756519018,0.043869,56973.0,56961.0,0.2158]
[1723756519019,0.043874,56967.0,56966.0,0.05231711]
[1723756519212,0.043874,56966.0,56965.0,0.05231711]
[1723756519412,0.043874,56966.0,56963.0,0.06982284]
[1723756519809,0.043875,56965.0,56963.0,0.06982284]
[1723756520513,0.043875,56965.0,56962.0,0.06982284]
[1723756520716,0.043877,56963.0,56962.0,0.06982284]
[1723756520910,0.087754,56962.0,56961.0,0.00026319]
[1723756521314,0.043877,56962.0,56961.0,0.00026319]
[1723756521824,0.043877,56962.0,56961.0,0.05259139]
[1723756522123,0.043877,56962.0,56961.0,0.00026319]
[1723756522318,0.045877,56962.0,56961.0,0.00026319]
[1723756526409,0.572557,56962.0,56961.0,0.00026319]
[1723756527517,0.582557,56962.0,56961.0,0.00026319]
[1723756527820,0.982557,56962.0,56961.0,0.00026319]
[1723756528416,0.972557,56962.0,56961.0,0.00026319]
[1723756528717,1.212557,56962.0,56961.0,0.00026319]
[1723756530325,0.812557,56962.0,56961.0,0.00026319]
[1723756530526,1.212557,56962.0,56961.0,0.00026319]
[1723756531023,0.812557,56962.0,56961.0,0.00026319]
[1723756531722,0.002,56962.0,56961.0,0.04414119]
[1723756532038,0.002,56962.0,56961.0,0.00026319]
[1723756533922,0.045877,56962.0,56961.0,0.00026319]
[1723756537225,0.002,56962.0,56961.0,0.00026319]
[1723756537431,0.002,56962.0,56961.0,0.04414119]
[1723756537622,0.002,56962.0,56961.0,3.81414119]
[1723756538422,0.002,56962.0,56961.0,0.09646939]
[1723756539023,0.002,56962.0,56961.0,0.04414119]
[1723756540342,0.3608,56965.0,56961.0,0.00026319]
[1723756540525,0.3608,56965.0,56963.0,0.05217624]
[1723756541625,0.3618,56965.0,56964.0,0.05217624]
[1723756541839,0.3618,56965.0,56963.0,0.28997624]
[1723756542128,0.3618,56965.0,56964.0,0.05217624]
[1723756542725,0.043891,56945.0,56944.0,8.9e-07]
[1723756542926,0.3608,56945.0,56941.0,0.05226365]
[1723756543126,0.3608,56945.0,56937.0,8.9e-07]
[1723756543127,0.043894,56941.0,56937.0,0.05226365]
[1723756543324,0.3608,56938.0,56935.0,0.05226365]
[1723756543625,0.3608,56938.0,56933.0,0.05226365]
[1723756543930,0.00015287,56937.0,56932.0,0.05226365]
[1723756544119,0.3608,56933.0,56931.0,0.28612708]
[1723756544319,0.3608,56933.0,56931.0,0.00026343]
[1723756544320,0.4047,56933.0,56931.0,0.00026343]
[1723756544531,0.6347,56933.0,56931.0,0.00026343]
[1723756544719,0.57956309,56932.0,56931.0,4.3e-07]
[1723756544922,0.73713668,56932.0,56931.0,4.3e-07]
[1723756545125,1.13713668,56932.0,56931.0,4.3e-07]
[1723756545928,1.36623668,56932.0,56931.0,4.3e-07]
[1723756546832,1.36606,56932.0,56931.0,4.3e-07]
[1723756547635,1.36706,56932.0,56931.0,4.3e-07]
[1723756547834,1.97536086,56932.0,56905.0,0.00016616]
[1723756548035,0.3608,56906.0,56905.0,0.00016616]
[1723756548239,0.40489768,56906.0,56905.0,0.00016616]